Workbook

Sheet Ficha
D5: Información para la evaluación del desempeño
D7: Municipio:
D8: Ixtlahuacán de los Membrillos
D10: Registre por favor los programas que fueron capturados en la pestaña MIR | H10: Registre por favor los programas que fueron capturados en la pestaña SinMatriz
C11: 1 | D11: Estado de Derecho y Seguridad | G11: 1
C12: 2 | D12: Desarrollo Social | G12: 2
C13: 3 | D13: Desarrollo Económico | G13: 3
C14: 4 | D14: Gestión del Territorio | G14: 4
C15: 5 | G15: 5
C16: 6 | G16: 6
D18: Número de programas con MIR (programas que fueron capturados en la pestaña MIR) | F18: 4 | H18: Número de programas sin matriz (programas que fueron capturados en la pestaña SinMatriz)
D20: TOTAL | F20: =F18+J18 -> 4

Sheet Listas (hidden)
B2: Municipio | C2: Denominación del Programa | D2: Categoría programática | E2: Unidad responsable | F2: Fin | G2: Función | H2: Sub-función | I2: Alineación con objetivos superiores del PND | J2: Alineación con objetivos secundarios del PND | K2: Alineación con objetivos superiores del PED | L2: Alineación con objetivos secundarios del PED | M2: Alineación con objetivos superior del PMD | N2: Alineación con objetivos secundario del PMD | O2: Nivel MIR | P2: Resumen del nivel MIR | Q2: Resumen Narrativo (objetivos) | R2: Cantidad de Gasto | S2: Nombre | T2: Definición | U2: Dimensión | V2: Tipo | W2: Variables | X2: Método de Cálculo | Y2: Frecuencia de Medición | Z2: Unidad de Medida | AA2: Valores Programados | AB2: Metas | AC2: Medios de Verificación | AD2: Supuestos
B3: Acatic | D3: Subsidios sujetos a reglas de operación | F3: Gobierno | G3: Legislación | H3: 1.1.1 Legislación | I3: México_en_Paz | J3: 1.1. Promover y fortalecer la gobernabilidad democrática | K3: O1_Incrementar_la_sostenibilidad_del_medio_ambiente_y_la_vulnerabilidad_del_cambio_climático | L3: O1E1 Detener y revertir la degradación del medio ambiente | O3: Fin | P3: F | U3: Eficacia | V3: Estratégico | Y3: Mensual | AG3: Primer semestre
B4: Acatlán de Juárez | D4: Otros subsidios | F4: Desarrollo_Social | G4: Justicia | H4: 1.1.2 Fiscalización | I4: México_Incluyente | J4: 1.2. Garantizar la seguridad nacional | K4: O2_Impulsar_el_desarrollo_sostenible_de_las_regiones_del_estado | L4: O1E2 Efectuar una ordenación y manejo sostenible de los bosques | O4: Propósito | P4: P | U4: Eficiencia | V4: Gestión | Y4: Bimestral | AG4: Segundo semestre
B5: Ahualulco de Mercado | D5: Prestación de servicios públicos | F5: Desarrollo_Económico | G5: Coordinación_Política_de_Gobierno | H5: 1.2.1 Impartición de Justicia | I5: México_con_Educación_de_Calidad | J5: 1.3. Mejorar las condiciones de seguridad pública | K5: O3_Promover_un_desarrollo_urbano_sostenible_equitativo_y_ordenado | L5: O1E3 Frenar la pérdida de diversidad biológica | O5: Componentes | P5: C1 | U5: Economía | Y5: Trimestral
B6: Amacueca | D6: Provisión de bienes públicos | F6: Otros | G6: Relaciones_Exteriores | H6: 1.2.2 Procuración de Justicia | I6: México_Próspero | J6: 1.4. Garantizar un sistema de Justicia Penal eficaz, expedito, imparcial y transparente | K6: O4_Garantizar_el_suministro_del_agua_para_población_y_actividades_productivas | L6: O1E4 Incrementar el manejo sustentable de los residuos | O6: Actividades | P6: C2 | U6: Calidad | Y6: Semestral
B7: Amatitán | D7: Planeación, Seguimiento y Evaluación de políticas Públicas | G7: Asuntos_Financieros_y_Hacendarios | H7: 1.2.3 Reclusión y Readaptación Social | I7: México_Con_Responsabilidad_Global | J7: 1.5. Garantizar el respeto y protección de los derechos humanos y la erradicación de la discriminación | K7: O5_Mejorar_la_calidad_seguridad_y_sostenibilidad_de_la_movilidad_urbana | L7: O1E5 Incrementar la producción y uso de fuentes de energía limpias | P7: C3 | Y7: Anual
B8: Ameca | D8: Promoción y fomento | G8: Asuntos_de_Orden_Público_y_Seguridad_Interior | H8: 1.2.4 Derechos Humanos | J8: 1.6. Salvaguardar a la población, a sus bienes y a su entorno ante un desastre de origen natural o humano | K8: O6_Disminuir_los_factores_de_riesgo_y_mejorar_la_atención_ante_desastres | L8: O1E6 Mitigar las emisiones de gases de efecto invernadero | P8: C1A1 | Y8: Bianual
B9: San Juanito de Escobedo | D9: Regulación y Supervisión | G9: Otros_Servicios_Generales | H9: 1.3.1 Presidencia / Gubernatura | J9: 2.1. Garantizar el ejercicio efectivo de los derechos sociales para toda la población | K9: O7_Incrementar_la_formalidad_del_empleo_la_seguridad_social_y_estabilidad_laboral | L9: O1E7 Ordenar y proteger de manera sostenible los ecosistemas lacustres y costeros | P9: C1A2 | Y9: Bienal
B10: Arandas | D10: Específicos | G10: Protección_Ambiental | H10: 1.3.2 Política Interior | J10: 2.2. Transitar hacia una sociedad equitativa e incluyente | K10: O8_Mejorar_la_competitividad_y_el_crecimiento_inclusivo_y_sostenible_de_los_sectores_económicos | L10: O1E8 Reducir la contaminación de acuíferos y aguas superficiales | P10: C1A3 | Y10: Periodo
B11: El Arenal | D11: Proyectos de Inversión | G11: Vivienda_y_Servicios_a_la_Comunidad | H11: 1.3.3 Preservación y Cuidado del Patrimonio Público | J11: 2.3. Asegurar el acceso a los servicios de salud | K11: O9_Incrementar_de_forma_sostenible_la_productividad_y_rentabilidad_de_las_actividades_del_sector_primario | L11: O1E9 Reducir la vulnerabilidad y aumentar la resiliencia de la sociedad, las cuencas hidrológicas y los ecosistemas naturales, urbanos y agropecuarios frente a los efectos adversos del cambio climático | P11: C1A4
B12: Atemajac de Brizuela | D12: Apoyo al Proceso Presupuestario y para Mejorar la Eficiencia Institucional | G12: Salud | H12: 1.3.4 Función Pública | J12: 2.4. Ampliar el acceso a la seguridad social | K12: O10_Incrementar_la_afluencia_y_la_derrama_económica_proveniente_del_turismo | L12: O1E10 Revertir el deterioro de la calidad del aire | P12: C2A1
B13: Atengo | D13: Apoyo a la Función Pública y al Mejoramiento de la Gestión | G13: Recreación_Cultura_y_Otras_Manifestaciones_Sociales | H13: 1.3.5 Asuntos Jurídicos | J13: 2.5. Proveer un entorno adecuado para el desarrollo de una vida digna | K13: O11_Mejorar_la_conectividad_de_Jalisco_sus_regiones_y_municipios | L13: O2E1 Actualizar los ordenamientos ecológicos territoriales y su aplicación efectiva | P13: C2A2
B14: Atenguillo | D14: Operaciones Ajenas | G14: Educación | H14: 1.3.6 Organización de Procesos Electorales | J14: 3.1. Desarrollar el potencial humano de los mexicanos con educación de calidad | K14: O12_Reducir_la_pobreza_y_la_desigualdad | L14: O2E2 Desarrollar el potencial humano de las regiones con acceso a una educación de calidad | P14: C2A3
B15: Atotonilco el Alto | D15: Obligaciones de Cumplimiento de Resolución Jurisdiccional | G15: Protección_Social | H15: 1.3.7 Población | J15: 3.2. Garantizar la inclusión y la equidad en el Sistema Educativo | K15: O13_Proteger_los_derechos_y_ampliar_las_oportunidades_de_desarrollo_de_los_grupos_prioritarios | L15: O2E3 Generar oportunidades de empleos dignos aprovechando de forma sustentable las potencialidades regionales | P15: C2A4
B16: Atoyac | D16: Desastres Naturales | G16: Otros_Asuntos_Sociales | H16: 1.3.8 Territorio | J16: 3.3. Ampliar el acceso a la cultura como un medio para la formación integral de los ciudadanos | K16: O14_Mejorar_la_salud_de_la_población | L16: O2E4 Incrementar y mejorar la infraestructura productiva y social | P16: C3A1
B17: Autlán de Navarro | D17: Pensiones y Jubilaciones. | G17: Asuntos_Económicos_Comerciales_y_Laborales_Generales | H17: 1.3.9 Otros Asuntos de Orden Público y Seguridad Interior | J17: 3.4. Promover el deporte de manera incluyente para fomentar una cultura de salud | K17: O15_Aumentar_el_acceso_de_la_población_a_una_vivienda_digna | L17: O2E5 Mejorar la capacidad de gestión de los funcionarios y autoridades municipales | P17: C3A2
B18: Ayotlán | D18: Aportaciones a la Seguiridad Social | G18: Agropecuaria_Silvicultura_Pesca_y_Caza | H18: 1.4.1 Relaciones Exteriores | J18: 3.5.Hacer del desarrollo científico, tecnológico y la innovación pilares para el progreso económico y social sostenible | K18: O16_Incrementar_el_acceso_la_equidad_y_la_calidad_de_la_educación | L18: O2E6 Reducir la pobreza y la desigualdad | P18: C3A3
B19: Ayutla | G19: Combustibles_y_Energía | H19: 1.5.1 Asuntos Financieros | J19: 4.1. Mantener la estabilidad macroeconómica del país | K19: O17_Incrementar_el_desarrollo_tecnológico_la_investigación_científica_y_la_innovación | L19: O3E1 Conservar los suelos, incrementar las áreas verdes y las reservas territoriales | P19: C4A4
B20: La Barca | G20: Minería_Manufacturas_y_Construcción | H20: 1.5.2 Asuntos Hacendarios | J20: 4.2. Democratizar el acceso al financiamiento de proyectos con potencial de crecimiento | K20: O18_Garantizar_el_acceso_de_toda_la_población_a_la_cultura_y_las_diferentes_expresiones_artísticas | L20: O3E2 Impulsar un desarrollo urbano orientado al transporte sustentable
B21: Bolaños | G21: Transporte | H21: 1.7.1 Policía | J21: 4.3. Promover el empleo de calidad | K21: O19_Aumentar_la_práctica_del_deporte_y_actividades_físicas_de_la_población | L21: O3E3 Incrementar y mejorar los servicios y espacios públicos
B22: Cabo Corrientes | G22: Comunicaciones | H22: 1.7.2 Protección Civil | J22: 4.4. Impulsar y orientar un crecimiento verde incluyente y facilitador que preserve nuestro atrimonio natural al mismo tiempo que genere riqueza, competitividad y empleo | K22: O20_Reducir_la_incidencia_delictiva_y_mejorar_la_percepción_de_seguridad | L22: O3E4 Mejorar la conectividad y articulación de las principales ciudades con una perspectiva regional e interestatal
B23: Casimiro Castillo | G23: Turismo | H23: 1.7.3 Otros Asuntos de Orden Público y Seguridad | J23: 4.5. Democratizar el acceso a servicios de telecomunicaciones | K23: O21_Mejorar_la_impartición_de_justicia_con_un_sistema_eficaz_expedito_imparcial_y_transparente | L23: O3E5 Ordenar el crecimiento de las áreas urbanas y asegurar el cumplimiento de la normatividad inherente
B24: Cihuatlán | G24: Ciencia_Tecnología_e_Innovación | H24: 1.7.4 Sistema Nacional de Seguridad Pública | J24: 4.6. Abastecer de energía al país con precios competitivos, calidad y eficiencia a lo largo de la cadena productiva | K24: O22_Reducir_la_impunidad_mejorando_la_imparcialidad_transparencia_y_eficiencia_en_la_procuración_de_justicia | L24: O3E6 Promover un crecimiento urbano equitativo mediante la oferta de suelo accesible y de calidad a los sectores de menores ingresos
B25: Zapotlán el Grande | G25: Otras_Industrias_y_Otros_Asuntos_Económicos | H25: 1.8.1 Servicios Registrales, Administrativos y Patrimoniales | J25: 4.7. Garantizar reglas claras que incentiven el desarrollo de un mercado interno competitivo | K25: O23_Garantizar_el_respeto_y_la_protección_de_los_derechos_humanos_y_eliminar_la_discriminación | L25: O3E7 Reducir la contaminación del agua y aire, así como la visual y auditiva
B26: Cocula | G26: Transacciones_de_la_Deuda_Financiera_y_Costo_Financiero_Deuda | H26: 1.8.2 Servicios Estadísticos | J26: 4.8. Desarrollar los sectores estratégicos del país | K26: O24_Mejorar_la_estabilidad_y_funcionalidad_del_sistema_democrático | L26: O3E8 Reducir la fragmentación territorial y política en las áreas metropolitanas mediante la aplicación de un modelo de gobernanza metropolitana
B27: Colotlán | G27: Transferencias_Participaciones_y_Aportaciones | H27: 1.8.3 Servicios de Comunicación y Medios | J27: 4.9. Contar con una infraestructura de transporte que se refleje en menores costos para realizar la actividad económica | K27: O25_Mejorar_la_efectividad_de_las_instituciones_públicas_y_gubernamentales | L27: O4E1 Fortalecer el desarrollo y la capacidad técnica y financiera de los organismos operadores del agua
B28: Concepción de Buenos Aires | G28: Saneamiento_del_Sistema_Financiero | H28: 1.8.4 Acceso a la Información Pública Gubernamental | J28: 4.10. Construir un sector agropecuario y pesquero productivo que garantice la seguridad alimentaria del país | K28: O26_Mejorar_la_igualdad_entre_los_géneros_y_empoderar_a_las_mujeres | L28: O4E2 Incrementar los niveles de tratamiento de aguas residuales y su reutilización
B29: Cuautitlán de García Barragán | G29: Adeudos_Anteriores | H29: 1.8.5 Otros | J29: 4.11. Aprovechar el potencial turístico de México para generar una mayor derrama económica en el país | K29: O27_Incrementar_la_capacidad_innovadora_en_los_sectores_social_privado_y_público | L29: O4E3 Incrementar y diversificar las fuentes de abastecimiento y captación de agua
B30: Cuautla | H30: 2.1.1 Ordenación de Desechos | J30: 5.1. Ampliar y fortalecer la presencia de México en el mundo | L30: O4E4 Mejorar la potabilización de las aguas para el consumo humano
B31: Cuquío | H31: 2.1.2 Administración del Agua | J31: 5.2. Promover el valor de México en el mundo mediante la difusión económica, turística y cultural | L31: O4E5 Modernizar y ampliar la infraestructura hidroagrícola
B32: Chapala | H32: 2.1.3 Ordenación de Aguas Residuales, Drenaje y Alcantarillado | J32: 5.3. Reafirmar el compromiso del país con el libre comercio, la movilidad de capitales y la integración productiva | L32: O4E6 Ordenar el uso y aprovechamiento del agua en cuencas y acuíferos
B33: Chimaltitán | H33: 2.1.4 Reducción de la Contaminación | J33: 5.4. Velar por los intereses de los mexicanos en el extranjero y proteger los derechos de los extranjeros en el territorio nacional | L33: O4E7 Proteger y recuperar los bosques, humedales y ríos
B34: Chiquilistlán | H34: 2.1.5 Protección de la Diversidad Biológica y del Paisaje | L34: O4E8 Reducir el desperdicio del agua y racionalizar su uso
B35: Degollado | H35: 2.1.6 Otros de Protección Ambiental | L35: O5E1 Ampliar y articular la red de transporte público masivo incentivando la multimodalidad
B36: Ejutla | H36: 2.2.1 Urbanización | L36: O5E2 Incrementar el uso de medios alternativos de traslado, desincentivando el uso del automóvil
B37: Encarnación de Díaz | H37: 2.2.2 Desarrollo Comunitario | L37: O5E3 Mejorar la infraestructura y equipamiento para la movilidad motorizada y no motorizada
B38: Etzatlán | H38: 2.2.3 Abastecimiento de Agua | L38: O5E4 Mejorar la seguridad y la cultura vial
B39: El Grullo | H39: 2.2.4 Alumbrado Público | L39: O5E5 Modernizar los sistemas de transporte público en las ciudades
B40: Guachinango | H40: 2.2.5 Vivienda | L40: O6E1 Incrementar la capacitación y profesionalización del personal de protección civil
B41: Guadalajara | H41: 2.2.6 Servicios Comunales | L41: O6E2 Incrementar la cultura de protección civil en la sociedad, el gobierno y la empresa
B42: Hostotipaquillo | H42: 2.2.7 Desarrollo Regional | L42: O6E3 Mejorar los procedimientos para disminuir los riesgos y la atención de emergencias
B43: Huejúcar | H43: 2.3.1 Prestación de Servicios de Salud a la Comunidad | L43: O6E4 Mejorar los sistemas de información de los riesgos a los que está expuesta la población y su entorno
B44: Huejuquilla el Alto | H44: 2.3.2 Prestación de Servicios de Salud a la Persona | L44: O6E5 Mejorar y establecer sistemas de alerta temprana multirriesgos
B45: La Huerta | H45: 2.3.3 Generación de Recursos para la Salud | L45: O7E1 Aumentar la disponibilidad de capital humano mejor calificado adecuado a la demanda del mercado laboral
B46: Ixtlahuacán de los Membrillos | H46: 2.3.4 Rectoría del Sistema de Salud | L46: O7E2 Erradicar el trabajo infantil
B47: Ixtlahuacán del Río | H47: 2.3.5 Protección Social en Salud | L47: O7E3 Incrementar la certificación de competencias laborales y profesionales
B48: Jalostotitlán | H48: 2.4.1 Deporte y Recreación | L48: O7E4 Incrementar la cultura empresarial de la responsabilidad social
B49: Jamay | H49: 2.4.2 Cultura | L49: O7E5 Incrementar la productividad con beneficios compartidos, la empleabilidad y la capacitación en el trabajo
B50: Jesús María | H50: 2.4.3 Radio, Televisión y Editoriales | L50: O7E6 Mejorar la protección de los derechos del trabajador
B51: Jilotlán de los Dolores | H51: 2.4.4 Asuntos Religiosos y Otras Manifestaciones Sociales | L51: O7E7 Mejorar la remuneración y las condiciones laborales de la población ocupada
B52: Jocotepec | H52: 2.5.1 Educación Básica | L52: O7E8 Propiciar el equilibrio entre empleadores y trabajadores para preservar la paz laboral
B53: Juanacatlán | H53: 2.5.2 Educación Media Superior | L53: O8E1 Aumentar las exportaciones de las unidades productivas
B54: Juchitlán | H54: 2.5.3 Educación Superior | L54: O8E2 Aumentar los niveles de innovación tecnológica, empresarial y social
B55: Lagos de Moreno | H55: 2.5.4 Posgrado | L55: O8E3 Estimular el espíritu empresarial y el desarrollo de emprendedores
B56: El Limón | H56: 2.5.5 Educación para Adultos | L56: O8E4 Facilitar el acceso al financiamiento y la asistencia técnica, especialmente a la micro y pequeña empresa
B57: Magdalena | H57: 2.5.6 Otros Servicios Educativos y Actividades Inherentes | L57: O8E5 Incrementar el desarrollo y la integración de las cadenas productivas, de proveeduría y los clústeres
B58: Santa María del Oro | H58: 2.6.1 Enfermedad e Incapacidad | L58: O8E6 Incrementar la inversión extranjera directa
B59: La Manzanilla de la Paz | H59: 2.6.2 Edad Avanzada | L59: O8E7 Mejorar e incrementar la infraestructura productiva
B60: Mascota | H60: 2.6.3 Familia e Hijos | L60: O8E8 Mejorar la calidad y la productividad de las unidades económicas
B61: Mazamitla | H61: 2.6.4 Desempleo | L61: O8E9 Simplificar los trámites y agilizar los procesos de apertura de empresas
B62: Mexticacán | H62: 2.6.5 Alimentación y Nutrición | L62: O9E1 Ampliar y modernizar la infraestructura rural productiva
B63: Mezquitic | H63: 2.6.6 Apoyo Social para la Vivienda | L63: O9E2 Aumentar la comercialización de los productos del sector primario dentro y fuera del país
B64: Mixtlán | H64: 2.6.7 Indígenas | L64: O9E3 Aumentar la industrialización y el valor agregado a la producción del sector primario
B65: Ocotlán | H65: 2.6.8 Otros Grupos Vulnerables | L65: O9E4 Incrementar el financiamiento, la capacitación y asistencia técnica a los productores rurales
B66: Ojuelos de Jalisco | H66: 2.6.9 Otros de Seguridad Social y Asistencia Social | L66: O9E5 Incrementar la producción sustentable y comercialización de la madera y sus derivados
B67: Pihuamo | H67: 2.7.1 Otros Asuntos Sociales | L67: O9E6 Mejorar la sanidad e inocuidad de los productos agropecuarios
B68: Poncitlán | H68: 3.1.1 Asuntos Económicos y Comerciales en General | L68: O10E1 Aumentar la atracción y captación de inversión en el sector
B69: Puerto Vallarta | H69: 3.1.2 Asuntos Laborales Generales | L69: O10E2 Incrementar la promoción integral de destinos y rutas turísticas
B70: Villa Purificación | H70: 3.2.1 Agropecuaria | L70: O10E3 Innovar y diversificar la oferta turística por región y destino de forma sostenible
B71: Quitupan | H71: 3.2.2 Silvicultura | L71: O10E4 Mejorar el entorno, la infraestructura y equipamiento en centros turísticos
B72: El Salto | H72: 3.2.3 Acuacultura, Pesca y Caza | L72: O10E5 Mejorar las capacidades turísticas locales y promover el emprendurismo en el sector
B73: San Cristóbal de la Barranca | H73: 3.2.4 Agroindustrial | L73: O11E1 Ampliar y modernizar la red de ferrocarriles
B74: San Diego de Alejandría | H74: 3.2.5 Hidroagrícola | L74: O11E2 Incrementar la accesibilidad a las telecomunicaciones
B75: San Juan de los Lagos | H75: 3.2.6 Apoyo Financiero a la Banca y Seguro Agropecuario | L75: O11E3 Incrementar y modernizar la red de carreteras
B76: San Julián | H76: 3.3.1 Carbón y Otros Combustibles Minerales Sólidos | L76: O11E4 Modernizar y ampliar la infraestructura aérea y la marítima
B77: San Marcos | H77: 3.3.2 Petróleo y Gas Natural (Hidrocarburos) | L77: O11E5 Propiciar la ampliación de servicios logísticos estratégicos para el desarrollo social y económico
B78: San Martín de Bolaños | H78: 3.3.3 Combustibles Nucleares | L78: O12E1 Ampliar las capacidades productivas de la población en condiciones de vulnerabilidad
B79: San Martín Hidalgo | H79: 3.3.4 Otros Combustibles | L79: O12E2 Incrementar la disponibilidad y el acceso a una adecuada alimentación de la población en condiciones de pobreza
B80: San Miguel el Alto | H80: 3.3.5 Electricidad | L80: O12E3 Mejorar el pago de impuestos y servicios públicos acorde con el nivel de vida e ingresos de la población
B81: Gómez Farías | H81: 3.3.6 Energía no Eléctrica | L81: O12E4 Mejorar la calidad y espacios en las viviendas de la población en situación de pobreza
B82: San Sebastián del Oeste | H82: 3.4.1 Extracción de Recursos Minerales excepto los Combustibles Minerales | L82: O12E5 Promover la cohesión social desde los espacios de deliberación pública, fortaleciendo las organizaciones sociales y la participación comunitaria
B83: Santa María de los Ángeles | H83: 3.4.2 Manufacturas | L83: O12E6 Reducir el rezago educativo
B84: Sayula | H84: 3.4.3 Construcción | L84: O13E1 Ampliar las capacidades productivas de los grupos prioritarios
B85: Tala | H85: 3.5.1 Transporte por Carretera | L85: O13E2 Brindar atención y acompañamiento a la población migrante
B86: Talpa de Allende | H86: 3.5.2 Transporte por Agua y Puertos | L86: O13E3 Garantizar la accesibilidad y la inclusión de las personas con discapacidad; y reducir el riego de adquirirla
B87: Tamazula de Gordiano | H87: 3.5.3 Transporte por Ferrocarril | L87: O13E4 Garantizar los derechos de los adultos mayores, incrementar su autonomía y promover el envejecimiento activo
B88: Tapalpa | H88: 3.5.4 Transporte Aéreo | L88: O13E5 Garantizar y restituir los derechos de las niñas, niños y adolescentes
B89: Tecalitlán | H89: 3.5.5 Transporte por Oleoductos y Gasoductos y Otros Sistemas de Transporte | L89: O13E6 Incrementar el ingreso, permanencia y conclusión de la formación educativa de estudiantes indígenas
B90: Tecolotlán | H90: 3.5.6 Otros Relacionados con Transporte | L90: O13E7 Mejorar la dotación de servicios públicos en las localidades con población indígena
B91: Techaluta de Montenegro | H91: 3.6.1 Comunicaciones | L91: O13E8 Reducir la violencia intrafamiliar y comunitaria
B92: Tenamaxtlán | H92: 3.7.1 Turismo | L92: O13E9 Reducir los principales riesgos sociales y de salud a los que está expuesta la población joven (alcoholismo y drogadicción, embarazos adolescente, abandono escolar)
B93: Teocaltiche | H93: 3.7.2 Hoteles y Restaurantes | L93: O14E1 Impulsar la integración y universalidad de los servicios de salud
B94: Teocuitatlán de Corona | H94: 3.8.1 Investigación Científica | L94: O14E2 Incrementar el acceso efectivo a los servicios de salud, en especial la población en condiciones de vulnerabilidad y pobreza
B95: Tepatitlán de Morelos | H95: 3.8.2 Desarrollo Tecnológico | L95: O14E3 Mejorar la calidad en la prestación de los servicios de salud
B96: Tequila | H96: 3.8.3 Servicios Científicos y Tecnológicos | L96: O14E4 Reducir el sobrepeso y la obesidad de la población
B97: Teuchitlán | H97: 3.8.4 Innovación | L97: O14E5 Reducir y controlar los factores de riesgo para la salud con enfoque preventivo a la comunidad
B98: Tizapán el Alto | H98: 3.9.1 Comercio, Distribución, Almacenamiento y Depósito | L98: O15E1 Facilitar el acceso al financiamiento para adquirir una vivienda propia a la población más vulnerable
B99: Tlajomulco de Zúñiga | H99: 3.9.2 Otras Industrias | L99: O15E2 Garantizar la aplicación de los instrumentos de planeación urbana en la construcción de fraccionamientos y para evitar asentamiento irregulares
B100: Tlaquepaque | H100: 3.9.3 Otros Asuntos Económicos | L100: O15E3 Garantizar reservas territoriales suficientes para la construcción de viviendas
B101: Tolimán | H101: 4.1.1 Deuda Pública Interna | L101: O15E4 Incrementar la efectividad de los programas sociales dirigidos a la adquisición, autoconstrucción y mejora de la vivienda
B102: Tomatlán | H102: 4.1.2 Deuda Pública Externa | L102: O15E5 Mejorar el entorno y servicios en las viviendas en zonas urbanas y rurales marginadas
B103: Tonalá | H103: 4.2.1 Transferencias entre Diferentes Niveles y Ordenes de Gobierno | L103: O15E6 Mejorar los procesos de certificación de la propiedad de la vivienda en asentamientos irregulares
B104: Tonaya | H104: 4.2.2 Participaciones entre Diferentes Niveles y Ordenes de Gobierno | L104: O16E1 Ampliar la oferta, la calidad y el acceso para realizar estudios de posgrado y de educación continua
B105: Tonila | H105: 4.2.3 Aportaciones entre Diferentes Niveles y Ordenes de Gobierno | L105: O16E2 Ampliar las oportunidades educativas, en especial la población en condiciones de vulnerabilidad y pobreza
B106: Totatiche | H106: 4.3.1 Saneamiento del Sistema Financiero | L106: O16E3 Ampliar y mejorar la enseñanza de la ciencia y la tecnología en la educación básica
B107: Tototlán | H107: 4.3.2 Apoyos IPAB | L107: O16E4 Diversificar la oferta de programas de educación superior y sus modalidades
B108: Tuxcacuesco | H108: 4.3.3 Banca de Desarrollo | L108: O16E5 Incrementar en la educación superior la movilidad de estudiantes y académicos a nivel estatal, nacional e internacional
B109: Tuxcueca | H109: 4.3.4 Apoyo a los programas de reestructura en unidades de inversión (UDIS) | L109: O16E6 Incrementar espacios educativos comunes que permitan la conjunción de esfuerzos de instituciones para mejorar la calidad y consolidar el clúster de la educación superior en el estado
B110: Tuxpan | H110: 4.4.1 Adeudos de Ejercicios Fiscales Anteriores | L110: O16E7 Incrementar la cobertura de la educación media superior y superior
B111: Unión de San Antonio | L111: O16E8 Mejorar el aprendizaje de un segundo idioma por parte de los estudiantes en todos los niveles educativos, particularmente el básico
B112: Unión de Tula | L112: O16E9 Mejorar la capacitación y actualización de docente y directivos del sistema educativo
B113: Valle de Guadalupe | L113: O16E10 Reducir el rezago educativo
B114: Valle de Juárez | L114: O16E11 Reducir la violencia en los planteles educativos
B115: San Gabriel | L115: O17E1 Ampliar y mejorar los instrumentos de transferencia y difusión tecnológica
B116: Villa Corona | L116: O17E2 Aumentar las fuentes de financiamiento para actividades de ciencia y tecnología
B117: Villa Guerrero | L117: O17E3 Aumentar las instituciones y empresas que realizan actividades de investigación y desarrollo tecnológico
B118: Villa Hidalgo | L118: O17E4 Incrementar el desarrollo de proyectos científicos tecnológicos entre los sectores académicos y las empresas
B119: Cañadas de Obregón | L119: O17E5 Incrementar la I+D en las empresas que exportan productos de alta tecnología
B120: Yahualica de González Gallo | L120: O17E6 Incrementar la investigación y el desarrollo tecnológico en las instituciones educativas
B121: Zacoalco de Torres | L121: O17E7 Mejorar y ampliar la formación de recursos humanos calificados en el campo de la investigación y desarrollo
B122: Zapopan | L122: O18E1 Diversificar y ampliar las alternativas de recreación cultural en regiones y municipios
B123: Zapotiltic | L123: O18E2 Garantizar la disponibilidad, seguridad y conservación de los espacios y sitios culturales
B124: Zapotitlán de Vadillo | L124: O18E3 Incrementar la disponibilidad de recursos humanos en el ámbito artístico
B125: Zapotlán del Rey | L125: O18E4 Incrementar las capacidades creativas y de producción artística de la población
B126: Zapotlanejo | L126: O18E5 Mejorar las condiciones materiales, humanas e institucionales vinculadas a la cultura
B127: San Ignacio Cerro Gordo | L127: O19E1 Acrecentar la capacitación y formación de instructores y entrenadores en actividades físicas y deportivas
L128: O19E2 Incrementar la práctica de actividades físicas y deportivas en todos los niveles educativos, y la población en general
L129: O19E3 Incrementar y mejorar los espacios para la práctica de actividades físicas y deportivas
L130: O19E4 Mejorar y ampliar el sistema estatal del deporte de alto rendimiento
L131: O19E5 Promover la práctica del deporte competitivo en el ámbito local, regional y estatal
L132: O20E1 Fortalecer las capacidades y equipamiento de los cuerpos de seguridad pública
L133: O20E2 Garantizar la honestidad, confianza y el profesionalismo del personal que labora en las instituciones de seguridad pública y privada a través de un sistema adecuado de evaluación
L134: O20E3 Incrementar el acceso de la población a las actividades culturales, deportivas y recreativas
L135: O20E4 Incrementar el nivel de denuncia ciudadana y su correcta atención
L136: O20E5 Incrementar la participación ciudadana en la prevención del delito
L137: O20E6 Intensificar y mejorar la comunicación en materia de prevención del delito y combate a la inseguridad
L138: O21E1 Concluir y consolidar el nuevo sistema penal acusatorio
L139: O21E2 Disminuir la incidencia de los actos de corrupción
L140: O21E3 Facilitar el acceso de la justicia a nivel local y regional
L141: O21E4 Incrementar el uso de métodos alternativos de solución de conflictos
L142: O21E5 Mejorar el sistema penal con el propósito de reducir la sobrepoblación penitenciaria
L143: O21E6 Mejorar la capacitación y formación de los recursos humanos del poder judicial
L144: O21E7 Proporcionar asistencia y representación eficaz a las víctimas con perspectiva de derechos humanos
L145: O22E1 Aumentar la probabilidad de captura y condena por delitos cometidos
L146: O22E2 Disminuir la incidencia de los actos de corrupción
L147: O22E3 Investigar y perseguir el delito con mayor eficacia
L148: O22E4 Mejorar la calidad de los servicios que prestan los ministerios públicos
L149: O22E5 Mejorar la capacitación y formación de los recursos humanos para la procuración de justicia
L150: O22E6 Mejorar la percepción ciudadana sobre el quehacer del sistema de procuración de justicia
L151: O23E1 Disminuir la incidencia de las violaciones a los Derechos Humanos
L152: O23E2 Mejorar la atención a las víctimas de violaciones a los derechos humanos
L153: O23E3 Reducir la violencia y discriminación, particularmente aquella ejercida en contra de grupos en situación de vulnerabilidad
L154: O24E1 Contribuir al desarrollo democrático social y político
L155: O24E2 Incrementar la participación ciudadana en asuntos públicos y en organizaciones civiles y comunitarias
L156: O24E3 Mejorar la coordinación de los tres órdenes y niveles de gobierno
L157: O24E4 Prevenir y gestionar conflictos sociales a través del diálogo constructivo
L158: O25E1 Disminuir la incidencia de los actos de corrupción
L159: O25E2 Impulsar un gobierno abierto, promotor de la transparencia, la rendición de cuentas, la participación ciudadana y del uso de las tecnologías de información y comunicación
L160: O25E3 Incrementar la disponibilidad de recursos financieros y mejorar su uso y asignación
L161: O25E4 Mejorar la calidad y disponibilidad de información para la toma de decisiones de la sociedad y el gobierno
L162: O25E5 Mejorar la calidad y la prestación de servicios públicos
L163: O25E6 Mejorar la capacitación y profesionalización de los funcionarios y servidores públicos
L164: O25E7 Mejorar la planeación, programación, el seguimiento y la evaluación para una gestión pública eficiente orientada a resultados
L165: O26E1 Asegurar el acceso igualitario a la justicia
L166: O26E2 Garantizar el acceso universal a la salud reproductiva y sexual
L167: O26E3 Incrementar el acceso a la educación de niñas y mujeres
L168: O26E4 Incrementar la participación de las mujeres en cargos públicos y en puestos de elección popular
L169: O26E5 Incrementar las oportunidades laborales dignas para las mujeres, en particular las mujeres jefas de familia
L170: O26E6 Reducir la violencia contra las mujeres
L171: O27E1 Crear espacios físicos y virtuales, y otros mecanismos de diálogo y reflexión para generar soluciones innovadoras a problemas públicos y sociales
L172: O27E2 Desarrollar alianzas y redes entre empresas, gobierno, grupos sociales y universidades para impulsar la innovación, el emprendurismo y la creatividad que genere la creación de valor público y económico
L173: O27E3 Incrementar las actividades de investigación y desarrollo, principalmente en el sector agropecuario, la industria alimentaria, la industria creativa y la biotecnológica
L174: O27E4 Promover la innovación en el sector gubernamental en todos los órdenes y niveles de gobierno

Sheet Base (hidden)
A1: ID | B1: Ente auditable | C1: Denominación del Programa | D1: Categoría programática | E1: Unidad Responsable | F1: Finalidad | G1: Función | H1: Sub-función | I1: Alineación con objetivos superiores del PND | J1: Alineación con objetivos secundarios del PND | K1: Alineación con objetivos superiores del PED | L1: Alineación con objetivos secundarios del PED | M1: Alineación con objetivos superiores del PMD | N1: Alineación con objetivos secundarios del PMD | O1: Nivel MIR | P1: Código del nivel MIR | Q1: Resumen Narrativo (objetivos) | R1: Nombre del indicador | S1: Definición del indicador | T1: Dimensión del indicador | U1: Tipo de indicador | V1: Método de Cálculo del indicador | W1: Valor programado 1 (Numerador) | X1: Valor programado 2 (Denominador) | Y1: Frecuencia de Medición del indicador | Z1: Unidad de Medida del indicador | AA1: Metas del indicador | AB1: Medios de Verificación del indicador | AC1: Supuestos del indicador | AD1: Capítulo 1000 | AE1: Capítulo 2000 | AF1: Capítulo 3000 | AG1: Capítulo 4000 | AH1: Capítulo 5000 | AI1: Capítulo 6000 | AJ1: Capítulo 7000 | AK1: Capítulo 8000 | AL1: Capítulo 9000 | AM1: Avance 1er Semestre del Valor programado 1 (Numerador) | AN1: Avance 1er Semestre del Valor programado 2 (Denominador) | AO1: Avance Anual del Valor programado 1 (Numerador) | AP1: Avance Anual del Valor programado 2 (Denominador) | AQ1: Avance 1er Semestre del Capítulo 1000 | AR1: Avance 1er Semestre del Capítulo 2000 | AS1: Avance 1er Semestre del Capítulo 3000 | AT1: Avance 1er Semestre del Capítulo 4000 | AU1: Avance 1er Semestre del Capítulo 5000 | AV1: Avance 1er Semestre del Capítulo 6000 | AW1: Avance 1er Semestre del Capítulo 7000 | AX1: Avance 1er Semestre del Capítulo 8000 | AY1: Avance 1er Semestre del Capítulo 9000 | AZ1: Avance Anual del Capítulo 1000 | BA1: Avance Anual del Capítulo 2000 | BB1: Avance Anual del Capítulo 3000 | BC1: Avance Anual del Capítulo 4000 | BD1: Avance Anual del Capítulo 5000 | BE1: Avance Anual del Capítulo 6000 | BF1: Avance Anual del Capítulo 7000 | BG1: Avance Anual del Capítulo 8000 | BH1: Avance Anual del Capítulo 9000

Sheet SUSTENTO INDICADOR 2020
B2: Municipio de Ixtlahuacán de los Membrillos, Jal. | H2: INDICADORES DE GESTIÓN (Objetivos y resultados)
B4: Municipio de Ixtlahuacán de los Membrillos, Jal. | H4: INDICADORES DE EVALUACION DEL DESEMPEÑO
C5: DIRECCION MUNICIPAL: | F5: INFORMATICA
C7: NOMBRE DEL PROGRAMA PRESUPUESTARIO: | F7: DESARROLLO ECONOMICO
C10: NOMBRE DEL INDICADOR ESTRATEGICO: | F10: índice de desarrollo municipal del aspecto económico (IDM-E)
F13: AÑO: | G13: 2018 | H13: 2019 | I13: 2020 | J13: 2021
C15: AVANCE SEMESTRAL | L15: Criterios para determinar avance de porcentaje de metas
C16: Proyectos a desarrollar | E16: 1ro. | F16: 2do. | G16: 3ro. | H16: 4to. | I16: 5to. | J16: 6to. | L16: En la MIR se establecen los proyectos que ha programado la dirección para cumplir con el indicador estrategico durante la administración, con el cumplimiento al 100% de ellos y sus 8 variables dara cumplimiento a las meta individuales y de la dirección que constituyen el indicador estrategico o de evaluacion del exito ejercico el presupuesto asignado a la direccion y a cada proyecto y sus actividades, los informes bimensuales seran la suma de los valores relativos de cada bimestre que se va acumulando, hasta llegar al último bimestre de trabajo para su cumplimiento.
C17: Calidad Informática Mejorada | D17: INDICE de calidad informática (V1-CI) | E17: 0.1429 | F17: 0.3467 | G17: 0.6535
B18: 1.1 | C18: Levantamiento del estado actual de la red y dados los resultados adquirir nuevo equipo que atienda las necesidades. | D18: PORCENTAJE de actualización de la red, adquisición de nuevos equipos y colocacion de puntos de acceso a internet (P124-ARANE) | E18: 28% | F18: 35% | G18: 93%
B19: 1.2 | C19: Elaboración de un reglamento que se adecue a las nuevas necesidades de este ayuntamiento | D19: PORCENTAJE de elaboración del reglamento de informática (P125-ERI) | E19: 14% | F19: 30% | G19: 36%
B20: 1.3 | C20: Programa de mantenimiento, atención y solución de problemas que se presentes en las áreas de este ayuntamiento. | D20: PORCENTAJE de avance del programa de mantenimiento y atención a sistemas computacionales (P126-APMASC) | E20: 20% | F20: 38% | G20: 47%
C22: VALOR BIMESTRAL DEL INDICADOR | E22: =(E20+E19+E18)/3 -> 20.67% | F22: =(F20+F19+F18)/3 -> 34.33% | G22: =(G20+G19+G18)/3 -> 58.67%
C25: Proyectos a Desarrollar | F25: Nombre del indicador | H25: Definición | J25: Método de cálculo | M25: Valor programado 1 (Numerador) | O25: Valor programado 2 (Denominador) | P25: Frecuencia de medición | R25: Meta | S25: Caracteristicas del Indicador
B26: Propósito | C26: Calidad Informática Mejorada | F26: INDICE de calidad informática (V1-CI) | H26: Mide el nivel de atencion y solucion de los problemas a los usuarios de los equipos informaticos de la administración municipal | J26: (valor resultante de sumar los valores individuales de los cosientes entre sus denominadores por su ponderacion asignada, que miden las variables de: acttualizacion de red, reglamento y mantenimiento con su correspondientes ponderaciones de .4, .2, y .4) | M26: =0.4*(M31)+0.2*(M53)+0.4*(M68) -> 26.4 | O26: =0.4*(O31)+0.2*(O53)+0.4*(O68) -> 40.4 | P26: Bimestral | R26: =M26/O26 -> 0.6535 | S26: Eficacia | T26: Dimensión
S27: Estratégico | T27: Tipo
M28: =(M33+M55+M70)/3 -> 2.95 | O28: =(O33+O55+O70)/3 -> 5.67 | R28: =M28/O28 -> 52.12% | S28: Bimestral | T28: Frecuencia de medición
S29: Índice | T29: Unidad de medida
C30: Calendario de ejecución | F30: Enero | G30: Feb | H30: Mzo | I30: Abril | J30: Mayo | K30: Jun | L30: Jul | M30: Agosto | N30: Sept | O30: Oct | P30: Nov | Q30: Dic
B31: Componente 1 | C31: Levantamiento del estado actual de la red y dados los resultados adquirir nuevo equipo que atienda las necesidades. | F31: PORCENTAJE de actualización de la red, adquisición de nuevos equipos y colocacion de puntos de acceso a internet (P124-ARANE) | H31: Mide el avance en la actualización de los equipos, licencias y redes, que permitan la instalacion de sitios de gobierno con servicio de acceso a internet | J31: (Cantidad de redes de computacion (3), cantidad de computadoras a ser adquiridas nuevas (8) mantenimiento o colocacion de puntos nuevos de acceso a internet (30) /total de redes, computadoras y puntos de acceso a internet (44))*100 | M31: 41 | O31: 44 | P31: Mensual | R31: =M31/O31 -> 93.18% | S31: Eficacia | T31: Dimensión
S32: Gestión | T32: Tipo
M33: =R37+R39+R42+R44+R47+R50+R52 -> 3.50 | O33: =R36+R38+R41+R43+R46+R49+R51 -> 7 | R33: =M33/O33 -> 50.00% | S33: Bimestral | T33: Frecuencia de medición
S34: Porcentaje | T34: Unidad de medida
B35: Reglamento de Gobierno y de la Administracion Publica (Art 165 fracc III) | C35: Coordinar la implantación y operación de la red ejecutivas de la administración pública municipal, determinado las políticas y criterios para el proceso de la información de las distintas dependencias municipales y estableciendo los sistemas de información adecuados.
B36: Actividad 1.1 | C36: Verificar oficinas (15) el estado del cableado correspondiente a 200 metros de cable CAT5, asi mismo realizar cambio de conexiones RJ45 equivalente a 44 puertos y su funcionalidad. Dentro del mismo analisis se reporta humedad del ambiente que no involucre peligro alguno dentro de la misma red como meta de 44 subredes. En Enero-Julio 2020 se han verificado 7 oficinas, 41 computadoras e instalado 60 metros de cable y 5 conectores RJ45 | E36: P | F36: 12 | G36: 0 | H36: 12 | I36: 0 | J36: 12 | K36: 14 | L36: 10 | M36: 10 | N36: 10 | O36: 10 | P36: 10 | Q36: 0 | R36: =SUM($F36:$Q36)/100 -> 1
E37: E | F37: 12 | G37: 0 | H37: 12 | I37: 0 | J37: 12 | K37: 14 | L37: 0 | M37: 0 | N37: 0 | O37: 0 | P37: 0 | Q37: 0 | R37: =SUM($F37:$Q37)/100 -> 0.5
B38: Actividad 1.2 | C38: Revisar el estado router o switch, del total de 5 switch instalados en oficinas principales en el primer piso 3 y en el segundo piso 2, se verifica con el proveedor para analizar la vida util de los mismos basados en las horas de uso. Siendo estos en 33 maquinas. En Enero-Julio 2020 se han verificado 2 switcher y se verifico que el estado de vida útil es de 2 años | E38: P | F38: 12 | G38: 0 | H38: 12 | I38: 0 | J38: 12 | K38: 14 | L38: 10 | M38: 10 | N38: 10 | O38: 10 | P38: 10 | Q38: 0 | R38: 1
E39: E | F39: 12 | G39: 0 | H39: 12 | I39: 0 | J39: 12 | K39: 14 | L39: 0 | M39: 0 | N39: 0 | O39: 0 | P39: 0 | Q39: 0 | R39: 0.5
B40: Reglamento de Gobierno y de la Administracion Publica (Art 165 fracc VI) | C40: Ser la responsable de la implantación, configuración y administración de la red municipal.
B41: Actividad 1.3 | C41: Revisar el estado actual del concentrador, su capacidad utilizada, temperatura permitida, limpieza de todos los conectores usando alcohol y aire comprimido, para alargar la vida del dispositivo a dos años maximo, siendo 2 concentradores los instalados actualmente en Enero Julio 2020. | E41: P | F41: 12 | G41: 0 | H41: 12 | I41: 0 | J41: 12 | K41: 14 | L41: 10 | M41: 10 | N41: 10 | O41: 10 | P41: 10 | Q41: 0 | R41: 1
E42: E | F42: 12 | G42: 0 | H42: 12 | I42: 0 | J42: 12 | K42: 14 | L42: 0 | M42: 0 | N42: 0 | O42: 0 | P42: 0 | Q42: 0 | R42: 0.5
B43: Actividad 1.4 | C43: Politica de acceso a red interna del H. Ayuntamiento, se publicara con 20 lineamientos y politicas para acceso a la red e internet del Ayuntamiento, mismo que involucra sitios de confianza, herramientas administrativas y laborales, un filtro de paginas peligrosas. Se definio el archivo de politicas en Enero-Julio con espera a su aprobación por Secretaria General. | E43: P | F43: 12 | G43: 0 | H43: 12 | I43: 0 | J43: 12 | K43: 14 | L43: 10 | M43: 10 | N43: 10 | O43: 10 | P43: 10 | Q43: 0 | R43: =SUM($F43:$Q43)/100 -> 1
E44: E | F44: 12 | G44: 0 | H44: 12 | I44: 0 | J44: 12 | K44: 14 | L44: 0 | M44: 0 | N44: 0 | O44: 0 | P44: 0 | Q44: 0 | R44: 0.5
B45: Reglamento de Gobierno y de la Administracion Publica (Art 165 fracc II) | C45: Coordinar el diseño, desarrollo, implementación, operación, mantenimiento y optimización de los sistemas de procesamiento electrónico de datos, así como establecer los criterios de seguridad y soporte de la información para la administración pública municipal.
B46: Actividad 1.5 | C46: Revisión de politicas de acceso a sitios web no oficiales o no catalogados como herramienta laboral, generación y actualización de filtros especiales capaz de bloquear 200 paginas por hora, las cuales en base a criterios de seguridad son catalogadas como peligrosas sin certificado de seguridad y sin rubro alguno que ayude al personal a desempeñar correctamente su trabajo. En Enero-Julio 2020 se han bloqueado 10 accesos maliciosos asi como diagnosticado 2 equipos con software remoto. | E46: P | F46: 12 | G46: 0 | H46: 12 | I46: 0 | J46: 12 | K46: 14 | L46: 10 | M46: 10 | N46: 10 | O46: 10 | P46: 10 | Q46: 0 | R46: 1
E47: E | F47: 12 | G47: 0 | H47: 12 | I47: 0 | J47: 12 | K47: 14 | L47: 0 | M47: 0 | N47: 0 | O47: 0 | P47: 0 | Q47: 0 | R47: 0.5
B48: Reglamento de Gobierno y de la Administracion Publica (Art 165 fracc XII) | C48: Autorizar la introducción y salida de equipos de cómputo ajenos a las instalaciones públicas municipales.
B49: Actividad 1.6 | C49: Inventariado de los componentes asociados a la red interna, asi mismo levantamiento de equipo dañado por uso cotidiano y que requiere cambio. En Enero-Julio 2020 se tienen inventariado 43 computadoras, 3 switch y un balancedor especializado con carta en espera de liberacion por parte de tesoreria. | E49: P | F49: 12 | G49: 0 | H49: 12 | I49: 0 | J49: 12 | K49: 14 | L49: 10 | M49: 10 | N49: 10 | O49: 10 | P49: 10 | Q49: 0 | R49: 1
E50: E | F50: 12 | G50: 0 | H50: 12 | I50: 0 | J50: 12 | K50: 14 | L50: 0 | M50: 0 | N50: 0 | O50: 0 | P50: 0 | Q50: 0 | R50: 0.5
B51: Actividad 1.7 | C51: Medición del estado actual de velocidad de transferencia de información en internet basado en la calidad del servicio del proveedor proporcionado, en bajada y subida. En Enero-Julio 2020 la velocidad proporcionada por megacable esta entre 50 y 60 mb en descarga y 100 mb en subida | E51: P | F51: 12 | G51: 0 | H51: 12 | I51: 0 | J51: 12 | K51: 14 | L51: 10 | M51: 10 | N51: 10 | O51: 10 | P51: 10 | Q51: 0 | R51: 1
E52: E | F52: 12 | G52: 0 | H52: 12 | I52: 0 | J52: 12 | K52: 14 | L52: 0 | M52: 0 | N52: 0 | O52: 0 | P52: 0 | Q52: 0 | R52: 0.5
B53: Componente 2 | C53: Elaboración de un reglamento que se adecue a las nuevas necesidades de este ayuntamiento. | F53: PORCENTAJE de elaboración del reglamento de informática (P125-ERI) | H53: Mide el avance en la elaboración el reglamento de informatica y sistemas | J53: (Cantidad de articulos (10) desarrollados para el reglamento de resguardo, uso y manipulacion de equipos de computacion de la administracion municipal asignadas a las direcciones establecidas / Total de direcciones 28 con equipos de computacion de la administracion municipal asignadas y con aportaciones y conocimiento)*100 | M53: 10 | O53: 28 | P53: Mensual | R53: =M53/O53 -> 36% | S53: Eficacia | T53: Dimensión
S54: Gestión | T54: Tipo
M55: =R58+R61+R64+R67 -> 2 | O55: =R57+R60+R63+R66 -> 4 | R55: =M55/O55 -> 50% | S55: Bimestral | T55: Frecuencia de medición
S56: Índice | T56: Unidad de medida
B57: Actividad 2.1 | C57: Adecuar las politicas sobre las necesidades de cada area y accesos de internet como herramienta de trabajo, siendo un total de 23 oficinas primordiales y 40 computadoras, autorizando accesos a internet, y balanceando las cargas asi mismo filtrado de rangos IP como accesos seguros para impresoras y multifuncionale de todo el edificio. En Enero-Julio 2020 se han verificado 5 oficinas y dado de baja del sistema 10 computadoras por malfuncionalidad. | E57: P | F57: 12 | G57: 0 | H57: 12 | I57: 0 | J57: 12 | K57: 14 | L57: 10 | M57: 10 | N57: 10 | O57: 10 | P57: 10 | Q57: 0 | R57: =SUM($F57:$Q57)/100 -> 1
E58: E | F58: 12 | G58: 0 | H58: 12 | I58: 0 | J58: 12 | K58: 14 | L58: 0 | M58: 0 | N58: 0 | O58: 0 | P58: 0 | Q58: 0 | R58: =SUM($F58:$Q58)/100 -> 0.5
B59: Reglamento de Gobierno y de la Administracion Publica (Art 165 fracc I) | C59: Proponer, coordinar y ejecutar las políticas y criterios en materia de sistemas.
B60: Actividad 2.2 | C60: Manual operativo de uso de equipo electronico como computadoras e impresoras. Para envios de informacion por correo y almacenamiento en la nube, 1 para uso de formulas basicas en hojas de calculo, y el ultimo para acceso y configuracion de su red de trabajo para acceder al internet. En Enero-Julio 2020 se tiene generado un manual operativo en vista de aprobacion por parte de Oficialia Mayor | E60: P | F60: 12 | G60: 0 | H60: 12 | I60: 0 | J60: 12 | K60: 14 | L60: 10 | M60: 10 | N60: 10 | O60: 10 | P60: 10 | Q60: 0 | R60: 1
E61: E | F61: 12 | G61: 0 | H61: 12 | I61: 0 | J61: 12 | K61: 14 | L61: 0 | M61: 0 | N61: 0 | O61: 0 | P61: 0 | Q61: 0 | R61: 0.5
B62: Reglamento de Gobierno y de la Administracion Publica (Art 165 fracc V) | C62: Ser la responsable de coordinar, organizar y planear el desarrollo o adquisición de los sistemas informáticos de la Administración Pública Municipal.
B63: Actividad 2.3 | C63: Generar sistema y procedimiento para reportar fallas o averias en equipo o red. Se realizo un sistema en la nube para que el personal puede reportar fallas en el uso de la red, o alguna tecnologia que es indispensable en su area de desarrollo. En Enero-Julio 2020 se tiene instalado el sistema de levantamiento de fallas en un 80% se estan haciendo pruebas de funcionalidad. | E63: P | F63: 12 | G63: 0 | H63: 12 | I63: 0 | J63: 12 | K63: 14 | L63: 10 | M63: 10 | N63: 10 | O63: 10 | P63: 10 | Q63: 0 | R63: 1
E64: E | F64: 12 | G64: 0 | H64: 12 | I64: 0 | J64: 12 | K64: 14 | L64: 0 | M64: 0 | N64: 0 | O64: 0 | P64: 0 | Q64: 0 | R64: 0.5
B65: Reglamento de Gobierno y de la Administracion Publica (Art 165 fracc IV) | C65: Elaborar y difundir el Plan operativo anual de informática, el cual será documento rector en el manejo de la información propiedad del Municipio.
B66: Actividad 2.4 | C66: Generar un sistema de monitoreo constante de uso de los manuales anteriores. Para asegurarse que estas tienen acceso a informacion de manuales y ayudas que les permitan desempeñarse usando equipo de computo y red sin contratiempos. En Enero-Julio 2020 se tiene instalado el sistema de levantamiento de fallas en un 80% se estan haciendo pruebas de funcionalidad. | E66: P | F66: 12 | G66: 0 | H66: 12 | I66: 0 | J66: 12 | K66: 14 | L66: 10 | M66: 10 | N66: 10 | O66: 10 | P66: 10 | Q66: 0 | R66: 1
E67: E | F67: 12 | G67: 0 | H67: 12 | I67: 0 | J67: 12 | K67: 14 | L67: 0 | M67: 0 | N67: 0 | O67: 0 | P67: 0 | Q67: 0 | R67: =SUM($F67:$Q67)/100 -> 0.5
B68: Componente 3 | C68: Programa de mantenimiento, atención y solución de problemas que se presentes en las áreas de este ayuntamiento. | F68: PORCENTAJE de avance del programa de mantenimiento y atención a sistemas computacionales (P126-APMASC) | H68: Mide los avances en el cumplimiento del programa de mantenimiento y atención | J68: (Cantidad de computadoras (20) incluidas en el programa de mantenimiento y actividades relacionadas a las tecnologías de la informacion (20) que atiende el personal asignado a esta dirección administrativa del ayuntamiento /total de computadoras y actividades por atender en la dirección de Informática (43))*100 | M68: 20 | O68: 43 | P68: Mensual | R68: =M68/O68 -> 47% | S68: Eficacia | T68: Dimensión
S69: Gestión | T69: Tipo
M70: =R74+R77+R80+R83+R86+R88 -> 3.36 | O70: =R73+R76+R79+R82+R85+R87 -> 6 | R70: =M70/O70 -> 56% | S70: Bimestral | T70: Frecuencia de medición
S71: Porcentaje | T71: Unidad de medida
B72: Reglamento de Gobierno y de la Administracion Publica (Art 165 fracc VII) | C72: Mantener la compatibilidad de los Programas y equipos con que cuenta la administración Pública Municipal.
B73: Actividad 3.1 | C73: Mantenimiento a todas las computadoras, de las 43 maquinas resgistradas, verificar el estado, realizar pruebas de temperatura y humedad que garantizen el correcto funcionamiento y no ocasionen accidentes. En Enero-Julio 2020 se han verificado 20 maaquinas con problemas de procesamiento lento. | E73: P | F73: 8 | G73: 16 | H73: 8 | I73: 8 | J73: 8 | K73: 8 | L73: 8 | M73: 10 | N73: 10 | O73: 10 | P73: 6 | Q73: 0 | R73: =SUM($F73:$Q73)/100 -> 1
E74: E | F74: 8 | G74: 16 | H74: 8 | I74: 8 | J74: 8 | K74: 8 | L74: 0 | M74: 0 | N74: 0 | O74: 0 | P74: 0 | Q74: 0 | R74: =SUM($F74:$Q74)/100 -> 0.56
B75: Reglamento de Gobierno y de la Administracion Publica (Art 165 fracc IX) | C75: Previo estudio de necesidades reales, asignar o requerir a cada dependencia los equipos de cómputo y periféricos que necesiten para desarrollar sus funciones.
B76: Actividad 3.2 | C76: Mantenimiento a las impresoras verificación de niveles de tinta de todas las impresoras , generar reporte de falta de insumos como tinta, cartuchos y hojas, malfuncionalidad, dando su baja correspondiente. Siendo 10 impresoras las registradas en el inventario actual. En Enero-Julio 2020 se han cambiado dos cartuchos de impresion laser. | E76: P | F76: 8 | G76: 16 | H76: 8 | I76: 8 | J76: 8 | K76: 8 | L76: 8 | M76: 10 | N76: 10 | O76: 10 | P76: 6 | Q76: 0 | R76: =SUM($F76:$Q76)/100 -> 1
E77: E | F77: 8 | G77: 16 | H77: 8 | I77: 8 | J77: 8 | K77: 8 | L77: 0 | M77: 0 | N77: 0 | O77: 0 | P77: 0 | Q77: 0 | R77: 0.56
B78: Reglamento de Gobierno y de la Administracion Publica (Art 165 fracc X) | C78: Dar mantenimiento preventivo y correctivo a los equipos propiedad del patrimonio municipal.
B79: Actividad 3.3 | C79: Instalacion de actualizacion de software, de las 43 maquinas computadoras registradas, en base a las necesidades que el proveedor indica, verificar que estas herramientas fueran compatibles con versiones posteriores para evitar daño y borrado de datos persistentes en todas las oficinas, asi como paqueteria de oficina. Se han instalado 10 actualizaciones en maquinas con sistema operativo windows 10 | E79: P | F79: 8 | G79: 16 | H79: 8 | I79: 8 | J79: 8 | K79: 8 | L79: 8 | M79: 10 | N79: 10 | O79: 10 | P79: 6 | Q79: 0 | R79: =SUM($F79:$Q79)/100 -> 1
E80: E | F80: 8 | G80: 16 | H80: 8 | I80: 8 | J80: 8 | K80: 8 | L80: 0 | M80: 0 | N80: 0 | O80: 0 | P80: 0 | Q80: 0 | R80: 0.56
B81: Reglamento de Gobierno y de la Administracion Publica (Art 165 fracc XIV) | C81: Coordinarse con las autoridades Federales Estatales y Municipales en Materia informática.
B82: Actividad 3.4 | C82: Verificaciones de compatibilidad entre herramientas obsoletas y actualizadas, por las 43 maquinas las superviciones deben de llevar minimo 90% de compatibilidad en las herramientas utilizadas en 20 oficinas. Misma verificacion se coordina junto con varios proveedores de software estrategico que implementa el municipio en funcion. En Enero-Julio 2020 se tuvo un acercamiento con el enlace del software contpaq para checar las ultimas actualizaciones del software. | E82: P | F82: 8 | G82: 16 | H82: 8 | I82: 8 | J82: 8 | K82: 8 | L82: 8 | M82: 10 | N82: 10 | O82: 10 | P82: 6 | Q82: 0 | R82: =SUM($F82:$Q82)/100 -> 1
E83: E | F83: 8 | G83: 16 | H83: 8 | I83: 8 | J83: 8 | K83: 8 | L83: 0 | M83: 0 | N83: 0 | O83: 0 | P83: 0 | Q83: 0 | R83: 0.56
B84: Reglamento de Gobierno y de la Administracion Publica (Art 165 fracc XI) | C84: Emitir dictamen especializado ante el Comité de Adquisiciones para la compra, renta, ampliación, instalación de sistemas de información, así como de los demás servicios que se requieran en la materia.
B85: Actividad 3.5 | C85: Mantenimiento preventivo de actualizacion de hardware, implementacion de pruebas automatizadas que indican el estrés de los componentes electronicos del equipo de computo que involucran uso de discos de almacenamiento, pantallas, teclados y ratones. En las 43 maquinas registradas. Se han cambiado 3 ratones y 2 teclados en Enero-Julio 2020 por averia común en uso. | E85: P | F85: 8 | G85: 16 | H85: 8 | I85: 8 | J85: 8 | K85: 8 | L85: 8 | M85: 10 | N85: 10 | O85: 10 | P85: 6 | Q85: 0 | R85: =SUM($F85:$Q85)/100 -> 1
E86: E | F86: 8 | G86: 16 | H86: 8 | I86: 8 | J86: 8 | K86: 8 | L86: 0 | M86: 0 | N86: 0 | O86: 0 | P86: 0 | Q86: 0 | R86: 0.56
B87: Actividad 3.6 | C87: Generar diagnosticos de hardware y software como medida preventiva de errores. Identificar posibles fallas generalizadas, que desencadenen un reporte para la adquisición de nuevo equipo. Los diagnosticos incluyen fecha, punto critico y punto medio basado en un puntaje de 100. En Enero-Julio 2020 se detecto la necesidad de cambiar las 2 computadoras esenciales de Tesoreria, por problemas de seguridad, a un Sistema Unix, siendo esta la recomendacion MAC Book Mini Mid 2018 16GB RAM SSD 120 | E87: P | F87: 8 | G87: 16 | H87: 8 | I87: 8 | J87: 8 | K87: 8 | L87: 8 | M87: 10 | N87: 10 | O87: 10 | P87: 6 | Q87: 0 | R87: =SUM($F87:$Q87)/100 -> 1
E88: E | F88: 8 | G88: 16 | H88: 8 | I88: 8 | J88: 8 | K88: 8 | L88: 0 | M88: 0 | N88: 0 | O88: 0 | P88: 0 | Q88: 0 | R88: 0.56
C90: P : Programado / E: Ejecutado
C91: SEMAFORO DE CUMPLIMIENTO DE LOS PROYECTOS y DE LA DIRECCION
C92: Avance en tiempo | D92: Avance relativo | E92: Avances limitado

Sheet Hoja5
